[Event "27th CRO-chT 1A-Men 2018"]
[Site "Biograd"]
[Date "2018.09.14"]
[Round "7.9"]
[White "Lalic, Bogdan"]
[Black "Muse, Drazen"]
[Result "1/2-1/2"]
[ECO "A93"]
[WhiteElo "2403"]
[BlackElo "2352"]
[Annotator "NA"]
[PlyCount "26"]
[EventDate "2018.09.08"]
[EventType "team-tourn"]
[EventCountry "CRO"]
[SourceTitle "playchess.com"]
[Source "ChessBase"]
[SourceQuality "1"]
[TimeControl "40/5400+30:1800+30"]

1. d4 {[%emt 0:06:30]} e6 {[%emt 0:00:30]} 2. c4 {[%emt 0:00:30]} f5 {[%emt 0:00:00]} 3. Nf3 {[%emt 0:00:30]} Nf6 {[%emt 0:00:00]} 4. g3 {[%emt 0:00:00]} Be7 {[%emt 0:00:30]} 5. Bg2 {[%emt 0:00:00]} O-O {[%emt 0:00:00]} 6. O-O {[%emt 0:00:00]} d5 {[%emt 0:00:00]} 7. b3 {[%emt 0:01:00]} Nc6 {[%emt 0:00:00]} 8. Ba3 {[%emt 0:00:30]} Bxa3 {[%emt 0:01:00]} 9. Nxa3 {[%emt 0:00:30]} Ne4 {[%emt 0:00:00]} 10. Qc1 {[%emt 0:01:30]} Bd7 {[%emt 0:01:00]} 11. Qb2 {[%emt 0:01:30]} a5 {[%emt 0:00:30]} 12. Rac1 {[%emt 0:00:30]} Be8 {[%emt 0:00:30]} 13. Nc2 {[%emt 0:01:30]} f4 {[%emt 0:02:30]} 1/2-1/2

[Event "27th CRO-chT 1A-Men 2018"]
[Site "Biograd"]
[Date "2018.09.14"]
[Round "7.11"]
[White "Loncar, Robert"]
[Black "Zovko, Mario"]
[Result "1/2-1/2"]
[ECO "D13"]
[WhiteElo "2409"]
[BlackElo "2328"]
[Annotator "NA"]
[PlyCount "23"]
[EventDate "2018.09.08"]
[EventType "team-tourn"]
[EventCountry "CRO"]
[SourceTitle "playchess.com"]
[Source "ChessBase"]
[SourceQuality "1"]
[TimeControl "40/5400+30:1800+30"]

1. d4 {[%emt 0:00:30]} d5 {[%emt 0:00:30]} 2. c4 {[%emt 0:06:30]} c6 {[%emt 0:02:30]} 3. Nc3 {[%emt 0:00:00]} Nf6 {[%emt 0:00:30]} 4. cxd5 {[%emt 0:00:00]} cxd5 {[%emt 0:00:30]} 5. Bf4 {[%emt 0:00:30]} a6 {[%emt 0:00:00]} 6. e3 {[%emt 0:00:00]} Nc6 {[%emt 0:00:00]} 7. Nf3 {[%emt 0:00:00]} e6 {[%emt 0:00:30]} 8. Bd3 {[%emt 0:00:00]} Bb4 {[%emt 0:00:00]} 9. O-O {[%emt 0:00:00]} O-O {[%emt 0:00:00]} 10. Rc1 {[%emt 0:00:30]} Bd7 {[%emt 0:00:30]} 11. a3 {[%emt 0:00:00]} Be7 {[%emt 0:00:00]} 12. h3 {[%emt 0:00:00]} 1/2-1/2

[Event "27th CRO-chT 1A-Men 2018"]
[Site "Biograd"]
[Date "2018.09.14"]
[Round "7.21"]
[White "Biti, Ozren"]
[Black "Zivkovic, Vjekoslav"]
[Result "1/2-1/2"]
[ECO "B52"]
[WhiteElo "2366"]
[BlackElo "2358"]
[Annotator "NA"]
[PlyCount "21"]
[EventDate "2018.09.08"]
[EventType "team-tourn"]
[EventCountry "CRO"]
[SourceTitle "playchess.com"]
[Source "ChessBase"]
[SourceQuality "1"]
[TimeControl "40/5400+30:1800+30"]

1. e4 {[%emt 0:00:30]} c5 {[%emt 0:00:30]} 2. Nf3 {[%emt 0:00:00]} d6 {[%emt 0:00:00]} 3. Bb5+ {[%emt 0:00:00]} Bd7 {[%emt 0:00:00]} 4. Bxd7+ {[%emt 0:00:00]} Qxd7 {[%emt 0:00:00]} 5. O-O {[%emt 0:00:00]} Nf6 {[%emt 0:00:00]} 6. Nc3 {[%emt 0:00:30]} Nc6 {[%emt 0:00:00]} 7. d4 {[%emt 0:00:30]} cxd4 {[%emt 0:00:00]} 8. Nxd4 {[%emt 0:00:00]} e6 {[%emt 0:00:30]} 9. Re1 {[%emt 0:00:00]} Be7 {[%emt 0:00:00]} 10. h3 {[%emt 0:00:30]} O-O {[%emt 0:00:00]} 11. Be3 {[%emt 0:00:00]} 1/2-1/2

[Event "27th CRO-chT 1A-Men 2018"]
[Site "Biograd"]
[Date "2018.09.14"]
[Round "7.22"]
[White "Mrkonjic, Nenad"]
[Black "Medak, Bojan"]
[Result "1/2-1/2"]
[ECO "A07"]
[WhiteElo "2352"]
[BlackElo "2367"]
[Annotator "NA"]
[PlyCount "20"]
[EventDate "2018.09.08"]
[EventType "team-tourn"]
[EventCountry "CRO"]
[SourceTitle "playchess.com"]
[Source "ChessBase"]
[SourceQuality "1"]
[TimeControl "40/5400+30:1800+30"]

1. Nf3 {[%emt 0:00:30]} d5 {[%emt 0:00:30]} 2. g3 {[%emt 0:00:00]} Nf6 {[%emt 0:00:00]} 3. Bg2 {[%emt 0:00:00]} g6 {[%emt 0:00:00]} 4. O-O {[%emt 0:00:00]} Bg7 {[%emt 0:00:30]} 5. d3 {[%emt 0:00:00]} O-O {[%emt 0:00:00]} 6. c3 {[%emt 0:00:30]} Re8 {[%emt 0:00:00]} 7. Qc2 {[%emt 0:00:00]} e5 {[%emt 0:00:30]} 8. e4 {[%emt 0:00:00]} c6 {[%emt 0:00:00]} 9. Nbd2 {[%emt 0:00:00]} Qc7 {[%emt 0:00:00]} 10. Rd1 {[%emt 0:00:00]} a5 {[%emt 0:00:00]} 1/2-1/2

[Event "27th CRO-chT 1A-Men 2018"]
[Site "Biograd"]
[Date "2018.09.14"]
[Round "7.29"]
[White "Dutina, Dario"]
[Black "Golubovic, Boris"]
[Result "1/2-1/2"]
[ECO "B10"]
[WhiteElo "2245"]
[BlackElo "2386"]
[Annotator "NA"]
[PlyCount "39"]
[EventDate "2018.09.08"]
[EventType "team-tourn"]
[EventCountry "CRO"]
[SourceTitle "playchess.com"]
[Source "ChessBase"]
[SourceQuality "1"]
[TimeControl "40/5400+30:1800+30"]

1. e4 {[%emt 0:00:30]} c6 {[%emt 0:01:30]} 2. Bc4 {[%emt 0:03:30]} d5 {[%emt 0:08:30]} 3. Bb3 {[%emt 0:00:30]} e6 {[%emt 0:04:30]} 4. d4 {[%emt 0:00:30]} dxe4 {[%emt 0:02:30]} 5. Nc3 {[%emt 0:05:30]} Nf6 {[%emt 0:02:30]} 6. Bg5 {[%emt 0:03:30]} Be7 {[%emt 0:02:30]} 7. Nge2 $11 {[%emt 0:10:30]} (7. Bxf6 $5 gxf6 8. Nxe4 $11) 7... Nbd7 {[%emt 0:07:30]} 8. Ng3 {[%emt 0:13:30]} b6 {[%emt 0:19:30]} 9. Ncxe4 {[%emt 0:18:30]} Nxe4 {[%emt 0:04:30]} 10. Bxe7 {[%emt 0:00:30]} Qxe7 {[%emt 0:00:30]} 11. Nxe4 {[%emt 0:00:30]} Bb7 {[%emt 0:02:30]} 12. O-O {[%emt 0:08:30]} O-O {[%emt 0:04:30]} 13. Qe2 {[%emt 0:09:30]} c5 {[%emt 0:09:30]} 14. Rad1 {[%emt 0:01:30]} Rad8 {[%emt 0:01:30]} 15. c3 {[%emt 0:02:07]} cxd4 {[%emt 0:03:30]} 16. Rxd4 {[%emt 0:02:04]} Bxe4 {[%emt 0:00:30]} 17. Rxe4 {[%emt 0:02:05]} Nc5 {[%emt 0:00:30]} 18. Re3 {[%emt 0:00:04]} Nxb3 {[%emt 0:04:19]} 19. axb3 {[%emt 0:00:27]} a5 {[%emt 0:00:10]} 20. Rd1 {[%emt 0:01:57]} 1/2-1/2

[Event "27th CRO-chT 1A-Men 2018"]
[Site "Biograd"]
[Date "2018.09.14"]
[Round "7.30"]
[White "Petrov, Jole"]
[Black "Bozinovic, Bogdan"]
[Result "1-0"]
[ECO "A17"]
[WhiteElo "2397"]
[BlackElo "2229"]
[Annotator "NA"]
[PlyCount "75"]
[EventDate "2018.09.08"]
[EventType "team-tourn"]
[EventCountry "CRO"]
[SourceTitle "playchess.com"]
[Source "ChessBase"]
[SourceQuality "1"]
[TimeControl "40/5400+30:1800+30"]

1. Nf3 {[%emt 0:00:30]} c5 {[%emt 0:00:30]} 2. c4 {[%emt 0:00:00]} Nf6 {[%emt 0:00:30]} 3. Nc3 {[%emt 0:00:00]} e6 {[%emt 0:01:30]} 4. g3 {[%emt 0:00:30]} b6 {[%emt 0:00:30]} 5. Bg2 {[%emt 0:00:00]} Bb7 {[%emt 0:00:00]} 6. O-O {[%emt 0:03:00]} Be7 {[%emt 0:01:00]} 7. Re1 {[%emt 0:00:30]} Ne4 {[%emt 0:02:30]} 8. Nxe4 {[%emt 0:02:30]} Bxe4 {[%emt 0:00:30]} 9. d3 {[%emt 0:00:00]} Bb7 {[%emt 0:00:30]} 10. e4 {[%emt 0:00:00]} O-O {[%emt 0:04:30]} 11. d4 {[%emt 0:00:30]} cxd4 {[%emt 0:00:30]} 12. Nxd4 {[%emt 0:00:30]} d6 {[%emt 0:03:30]} 13. Be3 {[%emt 0:00:30] A17: English Opening: 1...Nf6 with ...Bb4} (13. b3 a6 14. Bb2 Qc7 15. Qg4 g6 16. e5 Bxg2 17. exd6 Bxd6 18. Kxg2 Nd7 19. Nf3 Rad8 20. Rad1 Be7 {1-0 (54) Gelfand,B (2729)-Inarkiev,E (2702) Nazran 2017}) 13... Nd7 {[%emt 0:03:30] [#]} 14. Qc2 $146 {[%emt 0:11:30]} ({Predecessor:} 14. Nb5 Ne5 15. b3 a6 16. Nc3 Qc7 17. Rc1 Rac8 18. f4 Nd7 19. Qd2 Rfe8 20. Red1 Rcd8 {1-0 (41) Banusz,T (2604)-Petrik,T (2477) Slovakia 2015}) 14... Qc7 {[%emt 0:03:30]} 15. Rac1 {[%emt 0:05:30]} Rac8 {[%emt 0:00:30]} 16. b3 {[%emt 0:00:30]} Qb8 {[%emt 0:01:30]} 17. a4 {[%emt 0:11:30]} Nf6 {[%emt 0:06:30]} 18. Bd2 {[%emt 0:02:30]} d5 {[%emt 0:03:30]} 19. exd5 {[%emt 0:02:30]} Bxd5 {[%emt 0:00:30]} 20. Bxd5 {[%emt 0:08:30]} Nxd5 {[%emt 0:00:00]} 21. Qe4 {[%emt 0:00:30]} Nf6 $11 {[%emt 0:05:00]} 22. Qf3 {[%emt 0:01:30]} Rfd8 {[%emt 0:09:30]} 23. Bc3 {[%emt 0:01:30]} Qc7 {[%emt 0:00:30]} 24. Nb5 {[%emt 0:12:30]} Qb8 {[%emt 0:01:30]} 25. a5 {[%emt 0:09:30]} bxa5 {[%emt 0:05:30]} 26. Bxa5 {[%emt 0:00:30]} Rd7 {[%emt 0:00:30]} 27. Red1 {[%emt 0:08:00]} a6 {[%emt 0:03:30]} 28. Nd4 {[%emt 0:01:23]} Bc5 {[%emt 0:06:30]} 29. Nc2 {[%emt 0:00:56]} h6 {[%emt 0:01:30]} 30. b4 {[%emt 0:01:05]} Be7 {[%emt 0:05:30]} 31. c5 {[%emt 0:00:19]} Nd5 {[%emt 0:01:30]} 32. Ne3 {[%emt 0:00:57]} Qb7 {[%emt 0:15:24]} 33. Kg2 {[%emt 0:06:38]} Bg5 {[%emt 0:04:37]} 34. Nc4 {[%emt 0:09:50]} Bxc1 {[%emt 0:03:42]} 35. Rxc1 {[%emt 0:00:01]} Nxb4 {[%emt 0:01:40]} 36. Qxb7 {[%emt 0:00:53]} Rxb7 {[%emt 0:00:07]} 37. Nd6 {[%emt 0:00:07]} Nd3 {[%emt 0:02:38]} 38. Rc3 {[%emt 0:00:16]} 1-0